bitfinex/quotes_SOLUSD_20240818
["timestamp","ask_amount","ask_price","bid_price","bid_amount"]
[1723958527535,22.6776,141.82,141.73,65.50196]
[1723958528253,22.6776,141.82,141.77,9.37]
[1723958532653,22.6776,141.82,141.75,9.37]
[1723958534466,27.6134,141.82,141.75,9.37]
[1723958541286,22.6776,141.82,141.75,9.37]
[1723958541462,22.6776,141.82,141.77,9.37]
[1723958541785,22.6776,141.82,141.79,9.37]
[1723958541989,22.6776,141.82,141.75,37.48]
[1723958541990,22.6776,141.82,141.8,9.37]
[1723958544785,22.6776,141.82,141.78,9.37]
[1723958547787,22.6776,141.82,141.8,9.37]
[1723958550795,22.6776,141.82,141.78,11.48919447]
[1723958550993,22.6776,141.82,141.78,9.37]
[1723958551172,22.6776,141.82,141.79,2.11919447]
[1723958552187,22.6776,141.82,141.78,15.56243235]
[1723958552494,22.6776,141.82,141.79,2.11919596]
[1723958552698,22.6776,141.82,141.78,15.56243235]
[1723958552887,22.6776,141.82,141.79,2.11919596]
[1723958553094,22.6776,141.82,141.8,2.11919517]
[1723958553280,22.6776,141.82,141.78,9.37]
[1723958553692,22.6776,141.82,141.79,2.11920679]
[1723958553890,22.6776,141.82,141.8,2.11920679]
[1723958554099,22.6776,141.82,141.8,9.37]
[1723958555923,22.6776,141.82,141.81,2.11917251]
[1723958556408,22.6776,141.82,141.8,9.37]
[1723958558801,16.0369,141.82,141.8,9.37]
[1723958560213,6.1671,141.85,141.81,2.11918333]
[1723958560414,6.1671,141.85,141.8,10.78035586]
[1723958560589,6.1671,141.85,141.81,2.11905424]
[1723958560910,6.1671,141.85,141.8,10.78035586]
[1723958561107,6.1671,141.85,141.81,2.11905504]
[1723958561316,6.1671,141.85,141.8,10.78024347]
[1723958561502,6.1671,141.85,141.81,2.11905424]
[1723958561904,6.1671,141.85,141.82,2.11905424]
[1723958562104,6.1671,141.85,141.8,10.78024347]
[1723958562408,6.1671,141.85,141.81,2.11896844]
[1723958562713,6.1671,141.85,141.82,2.11896844]
[1723958562914,6.1671,141.85,141.8,10.78020535]
[1723958563111,6.1671,141.85,141.81,2.11896685]
[1723958563316,15.3634,141.86,141.82,12.89909225]
[1723958563523,6.1671,141.88,141.82,10.7801254]
[1723958564419,6.1671,141.88,141.83,1.40996571]
[1723958565987,36.36119997,141.93,141.84,9.37]
[1723958565988,15.3634,141.93,141.84,9.37]
[1723958566191,15.3634,141.93,141.81,0.12549]
[1723958566192,15.3634,141.93,141.86,9.37]
[1723958566422,24.7334,141.93,141.84,11.48852424]
[1723958566600,9.37,141.91,141.82,6.18888726]
[1723958566922,6.1671,141.9,141.83,2.11864264]
[1723958567216,11.1001,141.9,141.82,9.37]
[1723958567417,20.994,141.89,141.82,9.37]
[1723958567625,9.49549,141.87,141.81,6.1899339]
[1723958567794,9.49549,141.87,141.8,2.11908214]
[1723958567998,9.49549,141.87,141.78,6.1899339]
[1723958568320,9.49549,141.87,141.79,2.1191376]
[1723958568627,9.49549,141.87,141.78,6.1899339]
[1723958568839,9.49549,141.87,141.79,2.11920637]
[1723958568840,4.9344,141.86,141.79,2.11920637]
[1723958569130,4.9344,141.86,141.78,6.1899339]
[1723958569306,16.0606,141.84,141.79,2.11920637]
[1723958569501,16.0606,141.84,141.77,15.5599339]
[1723958569700,16.0606,141.84,141.78,2.11928011]
[1723958569928,16.0606,141.84,141.79,2.11928011]
[1723958570111,16.0606,141.84,141.77,9.37]
[1723958570314,16.0606,141.84,141.78,2.11928835]
[1723958570622,16.0606,141.84,141.79,2.11928835]
[1723958570821,16.0606,141.84,141.77,9.37]
[1723958571138,16.0606,141.84,141.78,2.11930992]
[1723958571315,16.0606,141.84,141.79,2.11930992]
[1723958571625,16.0606,141.84,141.77,15.5599339]
[1723958571820,16.0606,141.84,141.78,2.11930834]
[1723958572002,16.0606,141.84,141.77,15.5599339]
[1723958572205,16.0606,141.84,141.78,2.11933911]
[1723958572412,16.0606,141.84,141.79,2.11933911]
[1723958572608,16.0606,141.84,141.77,9.37]
[1723958572805,16.0606,141.84,141.78,2.11932066]
[1723958573005,16.0606,141.84,141.79,2.11932066]
[1723958573225,16.0606,141.84,141.77,15.5599339]
[1723958573403,16.0606,141.84,141.78,2.11935336]
[1723958573598,16.0606,141.84,141.77,15.5599339]
[1723958573802,16.0606,141.84,141.78,2.11939269]
[1723958574111,16.0606,141.84,141.77,15.5599339]
[1723958574308,16.0606,141.84,141.77,9.37]
[1723958575036,16.0606,141.84,141.78,2.11947932]
[1723958575231,16.0606,141.84,141.77,9.37]
[1723958575406,16.0606,141.84,141.78,3.52991288]
[1723958575608,16.0606,141.84,141.78,1.41049564]
[1723958576610,16.0606,141.84,141.77,15.5599339]
[1723958576809,16.0606,141.84,141.78,2.11937112]
[1723958577126,16.0606,141.84,141.77,9.37]
[1723958577434,16.0606,141.84,141.78,2.11941364]
[1723958577607,16.0606,141.84,141.77,9.37]
[1723958577808,16.0606,141.84,141.78,2.11941364]
[1723958578033,16.0606,141.84,141.77,9.37]
[1723958578213,16.0606,141.84,141.77,10.78047586]
[1723958578410,16.0606,141.84,141.78,2.11937112]
[1723958578621,16.0606,141.84,141.77,10.78047586]
[1723958578827,16.0606,141.84,141.78,2.11937033]
[1723958579028,16.0606,141.84,141.79,9.37]
[1723958579513,16.0606,141.84,141.8,2.11917429]
[1723958579856,16.0606,141.84,141.79,9.37]
[1723958579857,16.0606,141.84,141.79,15.5657464]
[1723958580046,16.0606,141.84,141.8,2.11913799]
[1723958580337,16.0606,141.84,141.79,15.5657464]
[1723958580540,16.0606,141.84,141.8,2.11913847]
[1723958580744,16.0606,141.84,141.79,15.5657464]
[1723958580912,16.0606,141.84,141.8,2.11918209]
[1723958581109,16.0606,141.84,141.79,9.37]
[1723958581313,16.0606,141.84,141.8,2.11918209]
[1723958581523,16.0606,141.84,141.79,15.56814616]
[1723958581726,16.0606,141.84,141.8,2.11913847]
[1723958581930,16.0606,141.84,141.79,9.37]
[1723958582237,16.0606,141.84,141.8,2.1191887]
[1723958582437,16.0606,141.84,141.79,15.56797562]
[1723958582636,16.0606,141.84,141.8,2.11919984]
[1723958582947,16.0606,141.84,141.79,15.56797562]
[1723958583115,16.0606,141.84,141.8,2.11919905]
[1723958583433,16.0606,141.84,141.79,9.37]
[1723958583434,16.0606,141.84,141.79,15.56797562]
[1723958583647,16.0606,141.84,141.8,2.11915574]
[1723958583827,16.0606,141.84,141.79,9.37]
[1723958584028,6.1422,141.86,141.81,9.37]
[1723958584333,6.1422,141.86,141.82,2.11897001]
[1723958584545,6.1422,141.86,141.81,9.37]
[1723958584722,6.1422,141.86,141.82,2.1188895]
[1723958584923,6.1422,141.86,141.81,9.37]
[1723958585234,6.1422,141.86,141.82,2.11888367]
[1723958585553,6.1422,141.86,141.81,9.37]
[1723958585726,6.1422,141.86,141.82,2.11889277]
[1723958586045,6.1422,141.86,141.81,9.37]
[1723958586248,6.1422,141.86,141.82,2.11889339]
[1723958586422,6.1422,141.86,141.83,2.11888226]
[1723958586623,6.1422,141.86,141.8,10.24081255]
[1723958586843,6.1422,141.86,141.81,8.31449669]
[1723958587049,6.1422,141.86,141.82,2.11892551]
[1723958587244,6.1422,141.86,141.8,10.24081255]
[1723958587245,6.1422,141.86,141.81,6.19555528]
[1723958587435,6.1422,141.86,141.82,2.11892647]
[1723958587634,6.1422,141.86,141.83,2.11892647]
[1723958587839,6.1422,141.86,141.8,10.24081255]
[1723958588029,6.1422,141.86,141.81,8.31481123]
[1723958588223,6.1422,141.86,141.82,2.11891438]
[1723958588420,6.1422,141.86,141.83,2.11891438]
[1723958588626,6.1422,141.86,141.8,10.24081255]
[1723958588945,6.1422,141.86,141.81,8.31494448]
[1723958589147,6.1422,141.86,141.82,2.1189252]
[1723958589353,6.1422,141.86,141.81,6.19600746]
[1723958589527,6.1422,141.86,141.82,2.1189271]
[1723958589734,6.1422,141.86,141.81,6.19586179]
[1723958589943,6.1422,141.86,141.82,2.11892568]
[1723958590143,6.1422,141.86,141.79,19.89470979]
[1723958590144,11.0766,141.86,141.78,19.89470979]
[1723958590448,11.0766,141.86,141.79,8.31767592]
[1723958590648,11.0766,141.86,141.8,2.11923166]
[1723958590843,11.0766,141.86,141.79,6.19846579]
[1723958591155,11.0766,141.86,141.8,2.11921885]
[1723958591322,11.0766,141.86,141.79,6.19889104]
[1723958591527,11.0766,141.86,141.8,2.11928408]
[1723958591739,11.0766,141.86,141.79,6.19890168]
[1723958591945,11.0766,141.86,141.8,2.11932801]
[1723958592158,11.0766,141.86,141.79,6.19896827]
[1723958592328,11.0766,141.86,141.8,2.11930596]
[1723958592528,11.0766,141.86,141.79,6.19897066]
[1723958592844,11.0766,141.86,141.78,9.37]
[1723958592845,11.0766,141.86,141.8,2.11930596]
[1723958593036,11.0766,141.86,141.79,6.19896827]
[1723958593242,11.0766,141.86,141.78,9.37]
[1723958593441,11.0766,141.86,141.79,8.31851966]
[1723958593747,11.0766,141.86,141.8,2.11930675]
[1723958593923,11.0766,141.86,141.79,6.19936786]
[1723958594122,11.0766,141.86,141.78,9.37]
[1723958594123,11.0766,141.86,141.8,2.11930675]
[1723958594343,11.0766,141.86,141.79,6.19953018]
[1723958594551,11.0766,141.86,141.8,2.11930675]
[1723958594733,11.0766,141.86,141.79,6.19957024]
[1723958594933,11.0766,141.86,141.8,2.11930605]
[1723958595158,0.12549,141.85,141.78,9.37]
[1723958595334,0.12549,141.85,141.79,2.11932762]
[1723958595659,0.12549,141.85,141.8,2.11932762]
[1723958595955,0.12549,141.85,141.78,9.37]
[1723958596260,0.12549,141.85,141.79,2.11932999]
[1723958596552,0.12549,141.85,141.78,9.37]
[1723958596553,0.12549,141.85,141.8,2.11932999]
[1723958596757,0.12549,141.85,141.78,9.37]
[1723958596927,0.12549,141.85,141.79,2.11931758]
[1723958597133,0.12549,141.85,141.78,9.37]
[1723958597366,0.12549,141.85,141.79,2.11932999]
[1723958597533,0.12549,141.85,141.8,2.11932999]
[1723958597734,0.12549,141.85,141.78,9.37]
[1723958598058,0.12549,141.85,141.79,2.11930684]
[1723958598240,0.12549,141.85,141.8,2.11930684]
[1723958598560,0.12549,141.85,141.78,9.37]
[1723958598768,0.12549,141.85,141.79,2.11930843]
[1723958598947,0.12549,141.85,141.8,2.11930843]
[1723958599152,0.12549,141.85,141.78,9.37]
[1723958599354,0.12549,141.85,141.79,8.32038754]
[1723958599667,0.12549,141.85,141.8,2.11926512]
[1723958599873,0.12549,141.85,141.79,6.20136504]
[1723958600045,0.12549,141.85,141.8,2.11926322]
[1723958600245,0.12549,141.85,141.79,6.20136265]
[1723958600442,0.12549,141.85,141.8,2.11926322]
[1723958600664,0.12549,141.85,141.78,9.37]
[1723958600859,0.12549,141.85,141.79,2.11932841]
[1723958601056,0.12549,141.85,141.8,2.11932841]
[1723958601257,0.12549,141.85,141.78,9.37]
[1723958601448,0.12549,141.85,141.79,2.11930843]
[1723958601643,0.12549,141.85,141.8,2.11930843]
[1723958601875,0.12549,141.85,141.78,9.37]
[1723958602175,0.12549,141.85,141.79,2.11930684]
[1723958602348,0.12549,141.85,141.8,2.11930684]
[1723958602549,0.12549,141.85,141.78,9.37]
[1723958602752,0.12549,141.85,141.79,2.11930843]
[1723958602952,0.12549,141.85,141.77,20.78167364]
[1723958602953,6.1422,141.86,141.8,11.48930843]
[1723958603157,6.1422,141.86,141.81,2.11916046]
[1723958603355,6.1422,141.86,141.82,12.89925456]
[1723958603563,6.1422,141.86,141.83,3.52913189]
[1723958603753,6.1422,141.86,141.83,1.40997143]
[1723958604668,16.0606,141.88,141.84,9.37]
[1723958611863,6.0543,141.9,141.85,1.40984388]
[1723958612984,6.0543,141.9,141.86,9.37]
[1723958617681,6.0543,141.9,141.86,10.77965746]
[1723958617875,21.4029,141.92,141.88,9.37]
[1723958617876,16.4705,141.92,141.88,9.37]
[1723958618076,16.4705,141.92,141.89,1.40935263]
[1723958618291,16.4705,141.92,141.88,9.37]
[1723958620492,6.1723,141.94,141.88,9.37]
[1723958621491,6.1723,141.94,141.89,1.4092889]
[1723958621684,6.1723,141.94,141.9,9.37]
[1723958626498,16.4705,141.95,141.91,1.40912642]
[1723958626697,16.4705,141.95,141.9,9.37]
[1723958627596,21.4018,141.95,141.85,2.11805011]
[1723958627893,6.5463,141.94,141.87,9.37]
[1723958629398,6.5463,141.94,141.89,9.37]
[1723958631103,5.05779,141.93,141.86,9.37]
[1723958631292,6.5463,141.94,141.86,9.37]
[1723958632901,11.4781,141.94,141.86,9.37]
[1723958633803,11.4781,141.94,141.87,1.40944536]
[1723958633981,11.4781,141.94,141.86,9.37]
[1723958634582,11.4781,141.94,141.88,9.37]
[1723958634783,6.5463,141.94,141.88,9.37]
[1723958638605,6.5463,141.94,141.9,9.37]
[1723958642485,6.5463,141.94,141.88,9.37]
[1723958643516,6.5463,141.94,141.85,20.0]
[1723958643517,0.12549,141.93,141.85,20.0]
[1723958643695,0.12549,141.93,141.86,29.37]
[1723958643903,0.12549,141.93,141.86,9.37]
[1723958644691,5.05749,141.93,141.86,9.37]
[1723958646701,5.05749,141.93,141.86,11.48826954]
[1723958646907,5.05749,141.93,141.86,9.37]
[1723958650932,5.05749,141.93,141.82,64.38488866]
[1723958650933,11.5185,141.9,141.83,15.5612295]
[1723958651132,11.5185,141.9,141.84,2.11846338]
[1723958651328,6.5855,141.9,141.83,15.5612295]
[1723958651521,6.5855,141.9,141.84,2.11851894]
[1723958651724,6.5855,141.9,141.83,15.5612295]
[1723958651922,6.5855,141.9,141.84,2.11851894]
[1723958652115,20.4133,141.91,141.82,6.1912295]
[1723958652116,11.5199,141.86,141.82,6.1912295]
[1723958652312,6.5855,141.86,141.79,399.67]
[1723958652529,6.5855,141.86,141.8,2.11900557]
[1723958652740,6.5855,141.86,141.79,399.67]
[1723958653033,6.5855,141.86,141.8,2.11902643]
[1723958653218,6.5855,141.86,141.79,399.67]
[1723958653412,6.5855,141.86,141.8,2.1190606]
[1723958653633,6.5855,141.86,141.79,399.67]
[1723958653929,6.5855,141.86,141.8,2.11906139]
[1723958654112,6.5855,141.86,141.79,399.67]
[1723958654316,6.5855,141.86,141.8,2.11907142]
[1723958654631,6.5855,141.86,141.78,9.37]
[1723958654632,15.4806,141.85,141.78,9.37]
[1723958654945,15.4806,141.85,141.79,2.11907204]
[1723958655131,15.4806,141.85,141.8,2.11907204]
[1723958655301,15.4806,141.85,141.79,2.11907204]
[1723958655498,15.4806,141.85,141.8,2.11907204]
[1723958655727,15.4806,141.85,141.78,15.56889447]
[1723958655921,15.4806,141.85,141.79,2.11907452]
[1723958656133,15.4806,141.85,141.78,9.37]
[1723958656428,15.4806,141.85,141.79,2.1190629]
[1723958656604,15.4806,141.85,141.78,9.37]
[1723958656934,15.4806,141.85,141.8,9.37]
[1723958657801,15.4806,141.85,141.8,11.48905106]
[1723958658025,15.4806,141.85,141.8,9.37]
[1723958658229,15.4806,141.85,141.8,11.48905106]
[1723958658445,15.4806,141.85,141.8,9.37]
[1723958659920,15.4806,141.85,141.82,9.37]
[1723958661053,6.5855,141.86,141.83,1.4100105]
[1723958661540,15.4806,141.88,141.84,9.37]
[1723958662726,15.4806,141.88,141.85,1.40977657]
[1723958662928,6.5855,141.9,141.86,9.37]
[1723958671846,15.3207,141.87,141.83,2.11832523]
[1723958672054,15.3207,141.87,141.78,19.60222764]
[1723958672055,15.3207,141.87,141.81,2.11832523]
[1723958672259,15.3207,141.87,141.8,9.37]
[1723958672422,15.3207,141.87,141.81,2.11883504]
[1723958672622,15.3207,141.87,141.81,2.11886734]
[1723958676133,15.3207,141.87,141.8,9.37]
[1723958676449,15.3207,141.87,141.81,2.11888315]
[1723958677530,15.3207,141.87,141.82,9.37]
[1723958677737,15.3207,141.87,141.84,9.37]
[1723958677933,21.9062,141.9,141.84,9.37]
[1723958678840,21.9062,141.9,141.84,11.48843743]
[1723958679035,21.9062,141.9,141.84,9.37]
[1723958679466,21.9062,141.9,141.84,11.48843743]
[1723958679650,0.12549,141.89,141.82,11.48843743]
[1723958679856,0.12549,141.89,141.82,9.37]
[1723958680465,0.12549,141.89,141.83,2.11859246]
[1723958680654,0.12549,141.89,141.82,9.37]
[1723958683369,0.12549,141.89,141.83,2.11861409]
[1723958683567,0.12549,141.89,141.82,11.48861409]
[1723958683871,0.12549,141.89,141.82,9.37]
[1723958684055,0.12549,141.87,141.81,2.11882422]
[1723958684366,0.25098,141.87,141.8,9.37]
[1723958684560,0.25098,141.87,141.81,2.11886941]
[1723958684861,0.25098,141.87,141.8,9.37]
[1723958685039,0.25098,141.87,141.81,2.1189041]
[1723958685040,21.4924,141.86,141.81,2.1189041]
[1723958686450,21.4924,141.86,141.8,9.37]
[1723958686654,26.4269,141.86,141.79,6.19041331]
[1723958686842,26.4269,141.86,141.8,2.11896762]
[1723958687035,26.4269,141.86,141.78,15.56041331]
[1723958687239,26.4269,141.86,141.79,2.11904338]
[1723958687468,26.4269,141.86,141.8,2.11904338]
[1723958687647,26.4269,141.86,141.78,15.56041331]
[1723958687847,26.4269,141.86,141.79,2.11905451]
[1723958688064,26.4269,141.86,141.8,2.11905451]
[1723958688269,26.4269,141.86,141.78,15.56041331]
[1723958688467,26.4269,141.86,141.79,2.1190542]
[1723958688785,26.4269,141.86,141.78,15.56041331]
[1723958688786,26.4269,141.86,141.8,2.11905499]
[1723958689076,26.4269,141.86,141.78,15.56041331]
[1723958689268,26.4269,141.86,141.79,2.11905422]
[1723958689471,26.4269,141.86,141.8,2.11905422]
[1723958689771,26.4269,141.86,141.79,6.19041331]
[1723958689956,26.4269,141.86,141.8,2.11905453]
[1723958690150,21.4924,141.86,141.79,6.19041331]
[1723958690379,21.4924,141.86,141.8,11.48904371]
[1723958690561,21.4924,141.86,141.82,9.37]
[1723958697685,21.4924,141.86,141.83,3.52870984]
[1723958697883,26.3624,141.89,141.82,9.37]
[1723958698054,21.429,141.89,141.83,2.11863361]
[1723958698249,21.429,141.89,141.82,9.37]
[1723958698250,21.429,141.89,141.84,2.11863092]
[1723958698450,21.429,141.89,141.82,9.37]
[1723958698694,21.429,141.89,141.83,2.11862475]
[1723958698989,21.429,141.89,141.84,2.11862475]
[1723958699189,21.429,141.89,141.82,9.37]
[1723958699353,21.429,141.89,141.83,2.11862285]
[1723958699551,21.429,141.89,141.84,2.11862285]
[1723958699781,21.429,141.89,141.82,9.37]
[1723958699954,21.429,141.89,141.83,2.11861362]
[1723958700152,21.429,141.89,141.84,2.11861362]
[1723958700392,21.429,141.89,141.82,9.37]
[1723958700570,21.429,141.89,141.83,2.11861266]
[1723958700755,21.429,141.89,141.84,11.48861266]
[1723958701089,21.429,141.89,141.85,2.11843393]
[1723958701377,21.429,141.89,141.84,9.37]
[1723958701580,21.429,141.89,141.85,2.11843283]
[1723958701768,21.429,141.89,141.84,9.37]
[1723958701968,21.429,141.89,141.85,2.11843061]
[1723958702174,21.429,141.89,141.84,9.37]
[1723958702378,21.429,141.89,141.81,10.518004]
[1723958702674,9.37,141.92,141.86,9.37]
[1723958702675,6.0687,141.92,141.86,9.37]
[1723958702861,6.0687,141.92,141.87,1.40953712]
[1723958703385,6.0687,141.92,141.86,9.37]
[1723958703679,6.0687,141.92,141.85,15.55923645]
[1723958703890,6.0687,141.92,141.86,2.11829541]
[1723958704091,6.0687,141.92,141.85,15.55923645]
[1723958704297,6.0687,141.92,141.86,2.11830622]
[1723958704480,6.0687,141.92,141.85,15.55929844]
[1723958704685,6.0687,141.92,141.86,2.11830543]
[1723958704892,11.001,141.92,141.85,15.55929844]
[1723958705091,11.001,141.92,141.86,2.11830543]
[1723958705304,11.001,141.92,141.85,15.55931098]
[1723958705483,11.001,141.92,141.86,2.11830622]
[1723958705678,11.001,141.92,141.85,15.55931098]
[1723958705877,11.001,141.92,141.86,2.11830543]
[1723958706077,11.001,141.92,141.85,15.55931098]
[1723958706378,11.001,141.92,141.86,2.11830543]
[1723958706588,11.001,141.92,141.85,9.37]
[1723958706899,4.9327,141.91,141.85,9.37]
[1723958707286,15.0807,141.91,141.83,6.19089131]
[1723958707603,15.0807,141.91,141.84,2.11861727]
[1723958707604,4.933,141.9,141.84,2.11861727]
[1723958707776,4.933,141.9,141.82,9.49549]
[1723958707979,4.933,141.9,141.83,2.11862584]
[1723958708186,4.933,141.9,141.84,2.11862584]
[1723958708381,4.933,141.9,141.82,9.49549]
[1723958708686,4.933,141.9,141.83,2.11862427]
[1723958708687,6.4025,141.88,141.83,2.11862427]
[1723958708890,6.4025,141.88,141.81,9.37]
[1723958708891,6.4025,141.88,141.82,6.19145414]
[1723958709097,6.4025,141.88,141.83,2.11863996]
[1723958709307,6.4025,141.88,141.81,9.37]
[1723958709308,6.4025,141.88,141.82,6.19146399]
[1723958709492,6.4025,141.88,141.83,2.11864059]
[1723958709493,11.3362,141.88,141.83,2.11864059]
[1723958709694,15.0807,141.87,141.8,9.37]
[1723958709878,15.0807,141.87,141.81,8.31249925]
[1723958710078,15.0807,141.87,141.82,2.1188913]
[1723958710378,15.0807,141.87,141.81,6.19360795]
[1723958710582,15.0807,141.87,141.82,2.11889061]
[1723958710797,15.0807,141.87,141.81,6.19360795]
[1723958711005,6.4025,141.83,141.78,6.1971063]
[1723958711175,6.4025,141.83,141.79,2.11929765]
[1723958711382,6.4025,141.83,141.77,6.19736933]
[1723958711575,6.4025,141.83,141.78,8.31667489]
[1723958711773,6.4025,141.83,141.79,2.11930556]
[1723958711973,6.4025,141.83,141.78,6.19736933]
[1723958712197,6.4025,141.83,141.79,2.11933142]
[1723958712507,6.4025,141.83,141.77,6.19736933]
[1723958712712,6.4025,141.83,141.78,2.119353]
[1723958713004,6.4025,141.83,141.79,2.119353]
[1723958713188,6.4025,141.83,141.78,9.37]
[1723958713391,6.4025,141.83,141.79,2.11931033]
[1723958713705,6.4025,141.83,141.78,9.37]
[1723958713882,6.4025,141.83,141.79,2.11930954]
[1723958714087,6.4025,141.83,141.78,9.37]
[1723958714279,5.05999,141.86,141.8,9.37]
[1723958715684,5.05999,141.86,141.77,6.19701933]
[1723958715881,5.05999,141.86,141.79,9.37]
[1723958717779,4.9351,141.84,141.77,6.197204]
[1723958718001,9.49549,141.86,141.78,2.11931021]
[1723958718310,15.0807,141.83,141.79,2.11931021]
[1723958718491,6.4025,141.82,141.78,2.11936672]
[1723958718811,6.4025,141.82,141.76,15.567204]
[1723958719124,6.4025,141.82,141.77,2.1194074]
[1723958719407,6.4025,141.82,141.75,6.197204]
[1723958719628,6.4025,141.82,141.76,22.11957719]
[1723958719828,6.4025,141.82,141.76,20.0]
[1723958721306,6.4025,141.82,141.76,22.11961804]
[1723958721513,6.4025,141.82,141.76,20.0]
[1723958721709,6.4025,141.82,141.77,2.11949215]
[1723958721914,6.4025,141.82,141.75,6.197204]
[1723958722113,6.4025,141.82,141.76,22.11941245]
[1723958722319,6.4025,141.82,141.77,2.11941245]
[1723958722586,21.4832,141.78,141.76,2.11941245]
[1723958722698,21.4832,141.78,141.7,15.567204]
[1723958722899,21.4832,141.78,141.71,2.12013959]
[1723958723103,21.4832,141.78,141.72,2.12013959]
[1723958723310,21.4832,141.78,141.71,2.12013959]
[1723958723834,21.4832,141.78,141.71,9.37]
[1723958724405,21.4832,141.78,141.72,9.37]
[1723958728634,20.7303,141.78,141.74,9.37]
[1723958729942,20.7303,141.78,141.73,23.44]
[1723958730141,15.0807,141.78,141.73,23.44]
[1723958730312,15.0807,141.78,141.72,0.12549]
[1723958730512,15.0807,141.78,141.7,2.1203353]
[1723958730513,15.0807,141.78,141.74,23.44]
[1723958731129,16.6027,141.83,141.74,23.44]
[1723958731314,16.6027,141.83,141.71,0.37647]
[1723958731315,16.6027,141.83,141.78,23.44]
[1723958733219,16.6027,141.83,141.73,2.1203353]
[1723958733220,16.6027,141.83,141.76,23.44]
[1723958733412,16.6027,141.83,141.74,23.44]
[1723958733624,16.6027,141.83,141.72,23.44]
[1723958733625,0.37647,141.82,141.72,23.44]
[1723958733828,45.37647,141.82,141.72,23.44]
[1723958734451,50.31237,141.82,141.72,23.44]
[1723958734954,0.12549,141.8,141.72,23.44]
[1723958735153,0.12549,141.8,141.73,20.0]
[1723958736448,0.25098,141.8,141.7,23.44]
[1723958736749,45.25098,141.8,141.71,20.0]
[1723958738555,50.18748,141.8,141.71,20.0]
[1723958738760,0.12549,141.78,141.71,20.0]
[1723958739651,0.12549,141.78,141.72,23.44]
[1723958740138,16.6027,141.79,141.72,23.44]
[1723958740545,16.6027,141.79,141.73,0.12549]
[1723958741243,16.6027,141.79,141.72,23.44]
[1723958741562,0.12549,141.78,141.7,23.44]
[1723958741861,0.12549,141.78,141.71,20.0]
[1723958746734,0.12549,141.78,141.68,7.34118074]
[1723958746735,0.12549,141.76,141.68,7.34118074]
[1723958746950,68.81647,141.76,141.64,413.74]
[1723958747149,68.94196,141.76,141.64,413.74]
[1723958747474,0.12549,141.74,141.64,413.74]
[1723958747757,0.37647,141.74,141.64,413.74]
[1723958747940,50.31507,141.74,141.64,413.74]
[1723958748343,0.37647,141.74,141.64,413.74]
[1723958748555,0.37647,141.74,141.65,20.0]
[1723958748735,0.37647,141.74,141.64,421.0716651]
[1723958749563,0.12549,141.74,141.66,23.44]
[1723958749963,21.5938,141.75,141.68,23.44]
[1723958750175,21.5938,141.75,141.7,23.44]
[1723958752578,21.5938,141.75,141.72,23.44]
[1723958753138,21.5938,141.75,141.7,23.44]
[1723958755171,21.5938,141.75,141.69,20.0]
[1723958755172,0.12549,141.74,141.69,20.0]
[1723958755841,21.5938,141.75,141.69,20.0]
[1723958758240,21.5938,141.75,141.69,22.12046614]
[1723958758755,21.5938,141.75,141.69,20.0]
[1723958759267,21.5938,141.75,141.69,22.12046614]
[1723958760455,0.12549,141.74,141.69,22.12046614]
[1723958760659,0.12549,141.74,141.69,22.12051029]
[1723958760976,0.12549,141.74,141.69,20.0]
[1723958762367,0.12549,141.74,141.69,22.12051029]
[1723958762663,0.12549,141.74,141.69,20.0]
[1723958763042,0.12549,141.74,141.66,2.12051029]
[1723958763241,0.37647,141.74,141.65,2.12051029]